bitfinex/quotes_BTCUSD_20220115
["timestamp","ask_amount","ask_price","bid_price","bid_amount"]
[1642263018199,0.0003438,43351.0,43342.0,0.0463]
[1642263018599,0.31099437,43343.0,43342.0,0.0463]
[1642263018799,0.31099437,43343.0,43342.0,0.0015]
[1642263019000,0.6165706,43343.0,43342.0,0.0015]
[1642263022362,0.6165706,43343.0,43334.0,0.59220237]
[1642263022757,0.00018909,43342.0,43334.0,0.59220237]
[1642263023257,0.33030927,43334.0,43332.0,0.89470237]
[1642263023456,0.33030927,43334.0,43333.0,1.475075]
[1642263023705,0.33030927,43334.0,43333.0,0.375075]
[1642263024006,0.33030927,43334.0,43333.0,1.175075]
[1642263024403,0.33030927,43334.0,43333.0,0.375075]
[1642263025009,0.33030927,43334.0,43333.0,0.925075]
[1642263025204,0.33030927,43334.0,43333.0,0.375075]
[1642263027851,0.33030927,43334.0,43333.0,1.31727737]
[1642263028151,0.45428795,43336.0,43333.0,1.31727737]
[1642263028350,0.45351871,43336.0,43333.0,1.31727737]
[1642263028551,6.876e-05,43335.0,43333.0,1.31727737]
[1642263029151,6.876e-05,43335.0,43333.0,0.96727737]
[1642263029352,6.876e-05,43335.0,43333.0,0.375075]
[1642263030150,6.876e-05,43335.0,43333.0,0.96727737]
[1642263030550,6.876e-05,43335.0,43333.0,0.375075]
[1642263031200,6.876e-05,43335.0,43333.0,0.96727737]
[1642263033103,6.876e-05,43335.0,43333.0,0.375075]
[1642263034104,6.876e-05,43335.0,43334.0,1.39220237]
[1642263034404,6.876e-05,43335.0,43334.0,1.60575337]
[1642263034851,6.876e-05,43335.0,43334.0,1.013551]
[1642263036055,6.876e-05,43335.0,43334.0,1.60575337]
[1642263038607,6.876e-05,43335.0,43334.0,0.80575337]
[1642263038811,6.876e-05,43335.0,43334.0,0.76105337]
[1642263039408,6.876e-05,43335.0,43334.0,0.75105337]
[1642263039809,6.876e-05,43335.0,43334.0,1.258851]
[1642263041811,6.876e-05,43335.0,43334.0,0.158851]
[1642263042212,6.876e-05,43335.0,43334.0,0.155151]
[1642263042650,6.876e-05,43335.0,43334.0,0.855151]
[1642263043653,6.876e-05,43335.0,43334.0,1.305151]
[1642263043849,6.876e-05,43335.0,43334.0,1.260451]
[1642263044550,6.876e-05,43335.0,43334.0,0.810451]
[1642263045753,6.876e-05,43335.0,43334.0,0.110451]
[1642263046605,6.876e-05,43335.0,43334.0,1.010451]
[1642263049008,6.876e-05,43335.0,43334.0,0.965751]
[1642263051754,6.876e-05,43335.0,43334.0,0.96541581]
[1642263052555,6.876e-05,43335.0,43334.0,1.36541581]
[1642263052754,6.876e-05,43335.0,43334.0,0.96541581]
[1642263053599,6.876e-05,43335.0,43334.0,1.46541581]
[1642263053803,6.876e-05,43335.0,43334.0,0.96541581]
[1642263054004,6.876e-05,43335.0,43334.0,0.92071581]
[1642263054900,6.876e-05,43335.0,43334.0,0.02071581]
[1642263057556,6.876e-05,43335.0,43334.0,0.57071581]
[1642263058458,6.876e-05,43335.0,43334.0,1.07071581]
[1642263058659,6.876e-05,43335.0,43334.0,0.57071581]
[1642263058857,6.876e-05,43335.0,43334.0,0.52611581]
[1642263059061,6.876e-05,43335.0,43334.0,0.90117781]
[1642263059259,6.876e-05,43335.0,43334.0,1.74704832]
[1642263059458,6.876e-05,43335.0,43334.0,3.44704832]
[1642263060059,6.876e-05,43335.0,43334.0,2.85484595]
[1642263060457,6.876e-05,43335.0,43334.0,3.30484595]
[1642263060857,6.876e-05,43335.0,43334.0,3.84201066]
[1642263061108,6.876e-05,43335.0,43334.0,4.53291343]
[1642263061709,6.876e-05,43335.0,43334.0,3.84201066]
[1642263062110,6.876e-05,43335.0,43334.0,3.88831066]
[1642263063510,6.876e-05,43335.0,43334.0,5.10831066]
[1642263064512,0.00083131,43337.0,43335.0,2.55]
[1642263064711,0.00083131,43337.0,43336.0,4.50128765]
[1642263064959,0.00083131,43337.0,43336.0,5.08028765]
[1642263065157,0.00083131,43337.0,43336.0,5.18028765]
[1642263065357,0.00083131,43337.0,43336.0,5.53056368]
[1642263065559,0.00022347,43348.0,43337.0,1.22]
[1642263065758,0.00083129,43339.0,43338.0,1.00032]
[1642263065961,0.00083129,43339.0,43338.0,2.53417661]
[1642263066157,0.00090005,43339.0,43338.0,2.63417661]
[1642263066357,0.00090005,43339.0,43338.0,3.48417661]
[1642263066758,6.876e-05,43339.0,43338.0,4.47134132]
[1642263066964,6.876e-05,43339.0,43338.0,4.75708694]
[1642263067361,6.876e-05,43339.0,43338.0,3.90708694]
[1642263067963,6.876e-05,43339.0,43338.0,3.03526423]
[1642263068361,6.876e-05,43339.0,43338.0,3.43526423]
[1642263068807,6.876e-05,43339.0,43338.0,3.03526423]
[1642263069512,8.76e-06,43339.0,43338.0,3.64951861]
[1642263070209,0.00083455,43341.0,43339.0,0.00019751]
[1642263070409,0.30961456,43356.0,43340.0,4.191305]
[1642263070608,0.30961456,43356.0,43344.0,1.22]
[1642263070808,0.00027505,43355.0,43345.0,0.68705293]
[1642263071211,0.00025785,43354.0,43345.0,0.78705293]
[1642263071609,0.00024066,43353.0,43345.0,0.78705293]
[1642263071809,0.00024066,43353.0,43346.0,0.16592432]
[1642263071810,0.00083444,43352.0,43346.0,0.16592432]
[1642263072014,0.00105791,43352.0,43347.0,0.478895]
[1642263072210,0.00020628,43351.0,43348.0,0.26463829]
[1642263072456,0.00020628,43351.0,43349.0,0.0463]
[1642263072654,0.00083444,43352.0,43350.0,2.62520925]
[1642263072855,0.29430969,43362.0,43351.0,0.421193]
[1642263073057,0.00084295,43352.0,43351.0,0.421193]
[1642263073255,0.00084295,43352.0,43351.0,0.521193]
[1642263073455,0.00084295,43352.0,43351.0,1.77628628]
[1642263073456,0.00106642,43352.0,43351.0,1.77628628]
[1642263073856,0.00106642,43352.0,43351.0,1.521193]
[1642263074057,0.00022347,43352.0,43351.0,1.476393]
[1642263075759,0.00022347,43352.0,43351.0,1.376393]
[1642263075957,0.00022347,43352.0,43351.0,1.476393]
[1642263076802,0.00022347,43352.0,43351.0,1.534049]
[1642263077205,0.00022347,43352.0,43351.0,2.754049]
[1642263079859,0.00022347,43352.0,43351.0,2.75526095]
[1642263080256,0.00022347,43352.0,43351.0,3.25526095]
[1642263080859,0.00022347,43352.0,43351.0,3.83426095]
[1642263081259,0.00022347,43352.0,43351.0,4.73426095]
[1642263081461,0.00084104,43354.0,43353.0,2.95528425]
[1642263081659,0.00084104,43354.0,43353.0,3.75944521]
[1642263081958,0.00084104,43354.0,43353.0,4.97944521]
[1642263082362,0.00017191,43362.0,43353.0,4.97944521]
[1642263082559,0.00084102,43356.0,43355.0,1.335293]
[1642263082860,0.00090979,43356.0,43355.0,1.711654]
[1642263083062,0.00090979,43356.0,43355.0,1.811654]
[1642263083261,0.00090979,43356.0,43355.0,4.648301]
[1642263083262,9.79e-06,43356.0,43355.0,4.648301]
[1642263083460,0.0005336,43363.0,43361.0,0.00120771]
[1642263083716,0.0005336,43363.0,43362.0,4.725298]
[1642263083915,0.0005336,43363.0,43362.0,4.782933]
[1642263084116,0.00065393,43363.0,43362.0,2.332933]
[1642263084921,0.00065393,43363.0,43362.0,1.055298]
[1642263085315,0.00065393,43363.0,43362.0,0.476298]
[1642263085919,0.00065393,43363.0,43362.0,0.376298]
[1642263086122,0.00065393,43363.0,43361.0,0.59109222]
[1642263086123,0.66042261,43362.0,43361.0,0.59109222]
[1642263086319,0.31042261,43362.0,43361.0,0.59109222]
[1642263086522,0.31052575,43362.0,43360.0,0.59109222]
[1642263086920,8.595e-05,43361.0,43360.0,0.59109222]
[1642263087464,8.595e-05,43361.0,43360.0,0.330013]
[1642263089060,8.595e-05,43361.0,43360.0,0.285313]
[1642263090261,8.595e-05,43361.0,43360.0,1.385313]
[1642263092209,0.00065643,43363.0,43361.0,1.235311]
[1642263093207,0.00262532,43369.0,43361.0,1.235311]
[1642263093208,0.29406786,43369.0,43361.0,1.235311]
[1642263093408,0.00065644,43364.0,43361.0,0.285311]
[1642263094011,0.00065644,43364.0,43361.0,1.506911]
[1642263094208,0.00065644,43364.0,43363.0,2.790597]
[1642263094409,0.00012033,43368.0,43363.0,2.836897]
[1642263094612,0.00012033,43368.0,43367.0,0.00127042]
[1642263094856,0.00251502,43371.0,43367.0,1.736867]
[1642263095661,0.28753517,43373.0,43367.0,0.286867]
[1642263095858,0.0006285,43371.0,43364.0,0.3094]
[1642263096058,0.0006285,43371.0,43365.0,0.83256143]
[1642263096259,0.00015471,43370.0,43365.0,0.83256143]
[1642263096459,0.00015471,43370.0,43365.0,0.59198643]
[1642263096658,0.00013752,43369.0,43365.0,0.59198643]
[1642263096862,0.00013752,43369.0,43366.0,0.240573]
[1642263097060,0.00012033,43368.0,43366.0,0.240573]
[1642263097459,0.00010314,43367.0,43366.0,0.240573]
[1642263097659,0.00010314,43367.0,43366.0,0.237552]
[1642263098059,0.00010314,43367.0,43366.0,1.337552]
[1642263098259,0.00010314,43367.0,43366.0,0.237552]
[1642263099110,0.00010314,43367.0,43366.0,0.192952]
[1642263101116,0.00010314,43367.0,43366.0,0.692952]
[1642263101816,0.00010314,43367.0,43366.0,0.192952]
[1642263103362,0.00010314,43367.0,43360.0,0.1]
[1642263103560,0.00010314,43367.0,43361.0,0.192977]
[1642263103759,0.00063414,43369.0,43361.0,0.192977]
[1642263103760,8.595e-05,43366.0,43361.0,0.192977]
[1642263104159,6.876e-05,43365.0,43361.0,0.148277]
[1642263104359,0.33369374,43363.0,43361.0,0.148277]
[1642263104562,0.33369374,43363.0,43355.0,0.3963]
[1642263104761,0.33369374,43363.0,43356.0,0.148301]
[1642263104959,0.33369374,43363.0,43356.0,0.14838695]
[1642263105159,0.33369374,43363.0,43357.0,6.876e-05]
[1642263105359,0.00063479,43362.0,43358.0,0.148296]
[1642263105865,0.00063479,43362.0,43360.0,1.72388136]
[1642263106108,0.00063479,43362.0,43361.0,0.948284]
[1642263106310,6.876e-05,43365.0,43361.0,1.048284]
[1642263106608,0.00063481,43364.0,43361.0,1.048284]
[1642263106809,0.00063481,43364.0,43361.0,0.148284]
[1642263107008,0.00063481,43364.0,43357.0,6.876e-05]
[1642263107309,0.00063481,43364.0,43355.0,0.2963]
[1642263107310,0.00063481,43364.0,43358.0,0.148293]
[1642263107607,6.876e-05,43365.0,43358.0,0.148293]
[1642263107807,0.00063462,43363.0,43358.0,0.148293]
[1642263108009,0.29055485,43362.0,43358.0,0.148293]
[1642263108908,0.25087241,43361.0,43358.0,0.148293]
[1642263109108,0.48753405,43361.0,43358.0,0.103493]
[1642263109509,0.00253803,43369.0,43358.0,0.098493]
[1642263109715,0.00253803,43369.0,43356.0,8.595e-05]
[1642263109716,0.00253803,43369.0,43359.0,0.2553799]
[1642263109960,0.9055,43373.0,43361.0,1.22]
[1642263110166,0.9055,43373.0,43362.0,0.144777]
[1642263110361,8.595e-05,43370.0,43362.0,0.0463]
[1642263110563,0.24237657,43368.0,43363.0,0.098474]
[1642263110765,0.3340616,43367.0,43360.0,8.595e-05]
[1642263110970,0.37501,43366.0,43360.0,8.595e-05]
[1642263111262,0.3340616,43367.0,43357.0,0.00013752]
[1642263111462,0.00042173,43365.0,43357.0,0.00013752]
[1642263111662,0.25678529,43360.0,43357.0,0.00013752]
[1642263111862,0.25678529,43360.0,43358.0,0.098492]
[1642263112262,0.25678529,43360.0,43359.0,0.00010314]
[1642263112663,1.2992,43373.0,43360.0,1.898492]
[1642263112664,1.1992,43373.0,43360.0,1.898492]
[1642263112864,6.876e-05,43369.0,43361.0,0.24078097]
[1642263113065,6.876e-05,43369.0,43362.0,0.09848]
[1642263113613,0.25347567,43369.0,43362.0,0.09848]
[1642263114211,0.25347567,43369.0,43361.0,6.876e-05]
[1642263114212,0.27841907,43368.0,43361.0,6.876e-05]
[1642263114410,0.27841907,43368.0,43361.0,0.59205519]
[1642263114608,0.27841907,43368.0,43361.0,0.59198643]
[1642263115208,0.31068544,43360.0,43359.0,0.00010314]
[1642263115409,0.31068544,43360.0,43359.0,0.05398614]
[1642263115609,0.31068544,43360.0,43359.0,0.053883]
[1642263115809,0.31068544,43360.0,43359.0,0.05398614]
[1642263116107,0.30568544,43360.0,43359.0,0.05398614]
[1642263118172,0.30568544,43360.0,43359.0,0.00010314]
[1642263118567,0.30568544,43360.0,43358.0,0.00012033]
[1642263118768,0.0463,43359.0,43357.0,0.00107137]
[1642263118970,0.0463,43359.0,43358.0,0.00012033]
[1642263119169,0.05767703,43358.0,43351.0,0.54834061]
[1642263119369,0.10397703,43358.0,43351.0,0.54834061]
[1642263119570,0.10397703,43358.0,43352.0,0.00010315]
[1642263119770,0.09897703,43358.0,43352.0,0.00010315]
[1642263119969,0.0463,43358.0,43352.0,0.00010315]
[1642263120168,0.0463,43358.0,43350.0,0.00013753]
[1642263120169,0.25057942,43356.0,43350.0,0.00013753]
[1642263120369,0.29927063,43353.0,43351.0,0.053903]
[1642263121416,0.25057942,43356.0,43349.0,0.00015472]
[1642263121618,0.25057942,43356.0,43350.0,0.053915]
[1642263121813,0.0463,43358.0,43350.0,0.053915]
[1642263122015,0.0463,43358.0,43351.0,0.00012034]
[1642263122215,0.0463,43358.0,43351.0,0.00100767]
[1642263122414,0.34427949,43357.0,43352.0,0.053908]
[1642263122614,0.34427949,43357.0,43351.0,0.00100767]
[1642263122816,0.34427949,43357.0,43353.0,8.596e-05]
[1642263123114,0.29564057,43355.0,43353.0,8.596e-05]
[1642263123418,0.74758786,43354.0,43353.0,0.00097327]
[1642263123615,1.39005917,43354.0,43353.0,0.00097327]
[1642263124014,0.69005917,43354.0,43353.0,0.00097327]
[1642263124218,0.28431504,43350.0,43341.0,0.34162363]
[1642263124416,0.28431504,43350.0,43342.0,0.49316477]
[1642263124615,0.28431504,43350.0,43342.0,0.49335386]
[1642263125061,0.2512864,43352.0,43344.0,2.54823393]
[1642263125264,0.2975864,43352.0,43345.0,0.053927]
[1642263125462,0.2975864,43352.0,43345.0,0.05406452]
[1642263125661,0.2975864,43352.0,43346.0,0.00012033]
[1642263125863,0.2512864,43352.0,43347.0,0.053923]
[1642263126262,0.2512864,43352.0,43348.0,8.595e-05]
[1642263126463,0.28739524,43351.0,43349.0,0.053919]
[1642263129318,0.28739524,43351.0,43349.0,0.007919]
[1642263129920,0.29564057,43355.0,43349.0,0.007919]
[1642263130120,0.29564057,43355.0,43348.0,0.00101991]
[1642263130421,0.29564057,43355.0,43349.0,6.876e-05]
[1642263130622,0.29564057,43355.0,43349.0,0.0010027]
[1642263130823,0.24780594,43350.0,43349.0,0.00093394]
[1642263131324,0.24780594,43350.0,43349.0,0.0010027]
[1642263131722,0.24780594,43350.0,43349.0,6.876e-05]
[1642263132125,0.24780594,43350.0,43347.0,0.00093397]
[1642263132361,0.24780594,43350.0,43348.0,8.595e-05]
[1642263132563,0.24780594,43350.0,43349.0,0.007915]
[1642263132762,0.24780594,43350.0,43348.0,8.595e-05]
[1642263132965,0.24780594,43350.0,43349.0,0.00798676]
[1642263133166,0.24780594,43350.0,43347.0,0.00093397]
[1642263133364,0.24780594,43350.0,43349.0,6.876e-05]
[1642263133565,0.24780594,43350.0,43348.0,8.595e-05]
[1642263133764,0.24780594,43350.0,43349.0,0.00798676]
[1642263133964,0.24780594,43350.0,43348.0,8.595e-05]
[1642263134165,0.24780594,43350.0,43342.0,0.53923977]
[1642263134166,0.24780594,43350.0,43349.0,6.876e-05]
[1642263134364,0.24780594,43350.0,43342.0,0.49564564]
[1642263134564,0.00010314,43349.0,43343.0,0.007921]
[1642263134965,8.595e-05,43348.0,43343.0,0.007921]
[1642263135367,6.876e-05,43347.0,43343.0,0.007921]
[1642263135768,0.00010314,43349.0,43346.0,1.78545862]
[1642263135967,0.00010314,43349.0,43347.0,0.007922]
[1642263136213,8.595e-05,43348.0,43347.0,0.007922]
[1642263136617,8.595e-05,43348.0,43347.0,0.607922]
[1642263137114,8.595e-05,43348.0,43347.0,0.007922]
[1642263137515,0.24289189,43350.0,43347.0,0.007922]
[1642263139218,0.00077716,43352.0,43347.0,0.007922]
[1642263139419,0.00077716,43352.0,43342.0,1.89913728]
[1642263139623,0.00077716,43352.0,43343.0,0.0012901]
[1642263139870,0.00077716,43352.0,43343.0,0.00137605]
[1642263140065,8.595e-05,43353.0,43344.0,0.057662]
[1642263140265,0.33336601,43352.0,43344.0,0.057662]
[1642263140466,0.33343477,43352.0,43344.0,0.057662]
[1642263140665,0.33343477,43352.0,43345.0,0.057666]
[1642263141065,0.33343477,43352.0,43345.0,1.277666]
[1642263141467,0.00042831,43351.0,43345.0,0.157666]
[1642263141668,0.00042831,43351.0,43345.0,0.1]
[1642263142372,0.67749835,43352.0,43346.0,0.1]
[1642263142568,0.00042831,43350.0,43346.0,0.1]
[1642263143616,0.67749835,43352.0,43348.0,0.5911835]
[1642263143812,0.00078573,43350.0,43348.0,0.5911835]
[1642263144218,0.09288573,43350.0,43348.0,0.24768486]
[1642263144513,0.09288573,43350.0,43347.0,0.20308486]
[1642263144917,0.0921,43350.0,43347.0,0.20308486]
[1642263145117,0.0921,43350.0,43346.0,0.1]
[1642263146316,0.24240626,43349.0,43346.0,0.1]
[1642263146516,0.24240626,43349.0,43346.0,0.05]
[1642263149363,0.24240626,43349.0,43346.0,0.0054]
[1642263150565,0.33199626,43349.0,43346.0,0.0054]
[1642263154420,0.24820136,43343.0,43341.0,0.96811383]
[1642263154620,0.24820136,43343.0,43338.0,1.0269]
[1642263154621,0.24820136,43343.0,43340.0,0.58712788]
[1642263155275,0.24820136,43343.0,43338.0,1.13901409]
[1642263155476,0.24820136,43343.0,43339.0,1.67675238]
[1642263155671,0.24820136,43343.0,43339.0,1.67682114]
[1642263155870,0.2824762,43345.0,43339.0,1.67682114]
[1642263156272,0.0008715,43348.0,43339.0,6.876e-05]
[1642263156671,6.876e-05,43347.0,43339.0,6.876e-05]
[1642263156872,0.30289698,43347.0,43339.0,2.18732981]
[1642263157072,0.30289698,43347.0,43341.0,0.00093404]
[1642263157272,0.30187663,43346.0,43341.0,0.00093404]
[1642263157673,0.30289698,43347.0,43341.0,0.00093404]
[1642263158075,0.30289698,43347.0,43339.0,0.78978285]
[1642263158273,0.30289698,43347.0,43342.0,0.00093403]
[1642263158714,0.32880322,43345.0,43342.0,0.00093403]
[1642263159115,0.32880322,43345.0,43339.0,0.78978285]
[1642263159516,0.32880322,43345.0,43339.0,0.74531689]
[1642263159717,8.595e-05,43344.0,43339.0,0.74531689]
[1642263160115,6.876e-05,43343.0,43339.0,0.1]
[1642263160515,0.32880322,43345.0,43338.0,0.4493]
[1642263160516,8.595e-05,43344.0,43338.0,0.4493]
[1642263160725,0.07423595,43344.0,43338.0,0.4493]
[1642263160917,6.876e-05,43343.0,43338.0,0.4493]
[1642263161118,0.29999896,43340.0,43338.0,0.4493]
[1642263161519,6.876e-05,43343.0,43338.0,0.4493]
[1642263162968,6.876e-05,43343.0,43338.0,0.54980572]
[1642263163372,6.876e-05,43343.0,43341.0,0.4575541]
[1642263164468,6.876e-05,43343.0,43341.0,0.5706261]
[1642263164770,6.876e-05,43343.0,43342.0,4.01866664]
[1642263164968,0.00079424,43345.0,43343.0,2.5]
[1642263165169,0.32190837,43357.0,43344.0,2.82238975]
[1642263165372,0.00317614,43359.0,43346.0,0.05765914]
[1642263165570,0.00317614,43359.0,43344.0,2.82238975]
[1642263165571,0.00025786,43358.0,43348.0,0.31485338]
[1642263165769,0.00025786,43358.0,43350.0,0.38822121]
[1642263165972,0.00024067,43357.0,43350.0,0.38822121]
[1642263166215,0.00024067,43357.0,43350.0,0.48822121]
[1642263166413,0.3403795,43356.0,43350.0,0.48822121]
[1642263166613,0.34117387,43356.0,43350.0,0.48822121]
[1642263166812,0.00020629,43355.0,43350.0,0.48822121]
[1642263167213,0.00018909,43354.0,43347.0,0.0463]
[1642263167614,0.0001719,43353.0,43347.0,0.0463]
[1642263167812,0.00096624,43353.0,43348.0,0.23228854]
[1642263168013,0.00015471,43352.0,43348.0,0.27858854]
[1642263168414,0.00013752,43351.0,43348.0,0.27858854]
[1642263168815,0.00012033,43350.0,43348.0,0.27858854]
[1642263169217,0.00010314,43349.0,43348.0,0.27858854]
[1642263169416,0.00010314,43349.0,43348.0,0.23388854]
[1642263169616,0.00013752,43349.0,43348.0,0.0463]
[1642263170065,0.26080777,43355.0,43345.0,0.59178687]
[1642263170265,0.00079432,43351.0,43345.0,0.59178687]
[1642263170468,0.00079432,43351.0,43346.0,8.595e-05]
[1642263170865,0.00079432,43351.0,43345.0,0.00010314]
[1642263171269,0.31569996,43356.0,43345.0,0.00010314]
[1642263171667,6.877e-05,43355.0,43345.0,0.00010314]
[1642263171967,6.877e-05,43355.0,43346.0,0.057664]
[1642263172366,6.877e-05,43355.0,43347.0,6.876e-05]
[1642263172568,0.00043062,43354.0,43347.0,6.876e-05]
[1642263172969,0.2246875,43354.0,43347.0,6.876e-05]
[1642263173172,0.00043062,43354.0,43345.0,0.00010314]
[1642263173613,0.27361929,43355.0,43345.0,0.00010314]
[1642263173821,0.31256958,43346.0,43345.0,0.00010314]
[1642263174414,0.31256958,43346.0,43343.0,0.00013752]
[1642263174614,0.31256958,43346.0,43342.0,0.37073752]
[1642263174813,0.31256958,43346.0,43342.0,0.1]
[1642263175012,0.31256958,43346.0,43342.0,0.10093403]
[1642263176016,0.31256958,43346.0,43342.0,0.1]
[1642263176215,0.31256958,43346.0,43342.0,0.10093403]
[1642263176818,0.22760784,43345.0,43342.0,0.10093403]
[1642263177219,0.22760784,43345.0,43342.0,0.1]
[1642263177867,0.45491721,43344.0,43342.0,0.1]
[1642263178069,0.2410623,43343.0,43342.0,0.1]
[1642263179474,0.2410623,43343.0,43342.0,0.0553]
[1642263180875,0.36009666,43346.0,43342.0,0.0553]
[1642263182315,0.36009666,43346.0,43342.0,0.05623403]
[1642263182715,0.35886958,43346.0,43342.0,0.05623403]
[1642263182916,0.31256958,43346.0,43342.0,0.05623403]
[1642263183316,0.31256958,43346.0,43342.0,0.0553]
[1642263183516,0.31256958,43346.0,43342.0,0.05623403]
[1642263183915,0.00603505,43348.0,43342.0,0.05623403]
[1642263184319,6.877e-05,43347.0,43342.0,0.05623403]
[1642263184517,6.877e-05,43347.0,43342.0,0.0106]
[1642263184715,6.877e-05,43347.0,43343.0,0.00093402]
[1642263184981,0.28692749,43347.0,43343.0,0.00093402]
[1642263185379,0.22546226,43346.0,43343.0,0.00093402]
[1642263185580,0.22546226,43346.0,43342.0,0.0106]
[1642263185783,0.22546226,43346.0,43342.0,0.01153402]
[1642263186781,0.22546226,43346.0,43342.0,0.0106]
[1642263186995,0.28820994,43347.0,43342.0,0.01153403]
[1642263186996,0.28692749,43347.0,43342.0,0.01153403]
[1642263187582,0.2862391,43347.0,43342.0,0.01153403]
[1642263187984,0.00603505,43348.0,43343.0,6.877e-05]
[1642263189418,0.00603505,43348.0,43343.0,0.00100278]
[1642263189619,0.00603505,43348.0,43341.0,0.55868965]
[1642263190423,0.00603505,43348.0,43341.0,0.65868965]
[1642263191621,0.00603505,43348.0,43341.0,0.1]
[1642263192021,0.00103505,43348.0,43340.0,0.79027141]
[1642263192226,0.00043097,43349.0,43340.0,0.79027141]
[1642263192467,0.00043097,43349.0,43342.0,0.44989802]
[1642263192668,8.595e-05,43348.0,43342.0,0.44989802]
[1642263193067,6.876e-05,43347.0,43342.0,0.54989802]
[1642263193468,0.00053412,43349.0,43342.0,0.54989802]
[1642263194067,0.00010314,43349.0,43342.0,0.54989802]
[1642263194266,0.0008987,43349.0,43342.0,0.60756602]
[1642263194468,0.0008987,43349.0,43342.0,0.80966204]
[1642263194668,0.0008987,43349.0,43344.0,0.69027141]
[1642263195168,0.00010314,43349.0,43344.0,0.79027141]
[1642263195368,0.00089872,43349.0,43344.0,0.79027141]
[1642263196433,0.00010314,43349.0,43344.0,0.79027141]
[1642263196630,0.00089872,43349.0,43344.0,0.79027141]
[1642263197028,0.00089872,43349.0,43345.0,1.67721858]
[1642263197435,0.00089872,43349.0,43345.0,1.77721858]
[1642263197629,0.00010314,43349.0,43345.0,0.79027141]
[1642263197829,0.00089873,43349.0,43345.0,0.1]
[1642263198630,0.00089873,43349.0,43347.0,0.59216422]
[1642263198831,0.00010314,43349.0,43347.0,0.59216422]
[1642263199030,0.00010314,43349.0,43347.0,0.69216422]
[1642263199629,0.00010314,43349.0,43347.0,0.64746422]
[1642263200072,0.00010314,43349.0,43348.0,1.34746422]
[1642263200368,0.00010314,43349.0,43348.0,0.54746422]
[1642263200569,0.00010314,43349.0,43348.0,0.64746422]
[1642263202871,0.00010314,43349.0,43348.0,1.64746422]
[1642263203072,0.00010314,43349.0,43348.0,0.64746422]
[1642263203722,0.00010314,43349.0,43348.0,0.1]
[1642263203922,0.00010314,43349.0,43348.0,1.35]
[1642263204725,0.00010314,43349.0,43348.0,1.3054]
[1642263204923,0.00010314,43349.0,43348.0,0.1]
[1642263205328,0.00010314,43349.0,43347.0,0.79027141]
[1642263206427,0.00010314,43349.0,43347.0,0.1]
[1642263206628,0.00010314,43349.0,43346.0,0.79027141]
[1642263208669,0.00010314,43349.0,43347.0,0.5921501]
[1642263209069,0.00010314,43349.0,43347.0,0.6921501]
[1642263209269,0.21581693,43354.0,43347.0,0.6921501]
[1642263209469,0.21581693,43354.0,43348.0,0.5921501]
[1642263209669,6.876e-05,43353.0,43348.0,0.6471501]
[1642263210072,6.876e-05,43353.0,43348.0,0.5471501]
[1642263211115,6.876e-05,43353.0,43345.0,1.67718281]
[1642263211116,0.00049975,43353.0,43345.0,1.67718281]
[1642263211716,0.00049975,43353.0,43343.0,2.06197289]
[1642263212118,6.876e-05,43353.0,43344.0,8.595e-05]
[1642263212418,0.00043097,43352.0,43344.0,8.595e-05]
[1642263213216,0.00554623,43353.0,43344.0,8.595e-05]
[1642263213417,0.00078794,43352.0,43344.0,0.00101996]
[1642263213618,0.00078794,43352.0,43344.0,1.67824359]
[1642263213917,0.00078794,43352.0,43345.0,6.876e-05]
[1642263214518,0.00554623,43353.0,43345.0,6.876e-05]
[1642263214719,0.00078795,43352.0,43344.0,0.74637419]
[1642263214967,0.00090828,43352.0,43345.0,1.63236291]
[1642263215168,0.00010314,43351.0,43345.0,1.73236291]
[1642263215574,8.595e-05,43350.0,43345.0,1.73236291]
[1642263215969,6.876e-05,43349.0,43345.0,1.73236291]
[1642263216369,0.00010314,43351.0,43345.0,1.73236291]
[1642263216871,8.595e-05,43350.0,43345.0,0.1]
[1642263217170,0.25859432,43347.0,43344.0,0.00093401]
[1642263217674,0.00090827,43352.0,43344.0,0.00093401]
[1642263218075,0.00010314,43351.0,43346.0,0.59217008]
[1642263218271,0.00010314,43351.0,43346.0,0.59190698]
[1642263218625,8.595e-05,43350.0,43346.0,0.69190698]
[1642263219025,6.876e-05,43349.0,43346.0,0.69190698]
[1642263219225,0.31935716,43349.0,43346.0,0.69190698]
[1642263219424,0.3192884,43349.0,43346.0,0.69190698]
[1642263219825,0.3192884,43349.0,43346.0,0.64700698]
[1642263220226,0.00010314,43351.0,43346.0,0.64700698]
[1642263220426,0.00010314,43351.0,43346.0,0.1]
[1642263220628,0.00547747,43353.0,43340.0,0.53541813]
[1642263220629,8.595e-05,43350.0,43344.0,0.00093402]
[1642263221026,6.876e-05,43349.0,43344.0,0.00093402]
[1642263221427,0.00010314,43351.0,43344.0,0.00093402]
[1642263221627,0.00010314,43351.0,43340.0,0.63896505]
[1642263221828,8.595e-05,43350.0,43344.0,0.00093401]
[1642263222031,8.595e-05,43350.0,43345.0,0.98689133]
[1642263222228,6.876e-05,43349.0,43345.0,0.98689133]
[1642263222468,6.876e-05,43349.0,43345.0,1.77773622]
[1642263222666,0.00010314,43351.0,43345.0,0.79084489]
[1642263223064,8.595e-05,43350.0,43345.0,0.79084489]
[1642263223465,6.876e-05,43349.0,43345.0,0.79084489]
[1642263223866,0.00010314,43351.0,43345.0,0.79084489]
[1642263224168,0.00078794,43352.0,43347.0,0.69084489]
[1642263224169,8.595e-05,43350.0,43347.0,0.69084489]
[1642263224566,6.876e-05,43349.0,43347.0,0.79084489]
[1642263224766,6.876e-05,43349.0,43347.0,0.74624489]
[1642263224966,0.00010314,43351.0,43347.0,0.74624489]
[1642263225368,8.595e-05,43350.0,43347.0,0.74624489]
[1642263225772,6.876e-05,43349.0,43344.0,0.00093402]
[1642263226214,0.00010314,43351.0,43344.0,0.00093402]
[1642263226415,0.00010314,43351.0,43342.0,0.22825482]
[1642263226616,8.595e-05,43350.0,43345.0,0.986924]
[1642263227014,6.876e-05,43349.0,43345.0,1.086924]
[1642263227214,6.876e-05,43349.0,43346.0,2.48724899]
[1642263227415,0.00010314,43351.0,43346.0,2.48724899]
[1642263227615,0.00010314,43351.0,43346.0,2.58724899]
[1642263227815,8.595e-05,43350.0,43347.0,0.986924]
[1642263228014,8.595e-05,43350.0,43348.0,0.33671115]
[1642263228215,6.876e-05,43349.0,43348.0,0.33671115]
[1642263228424,6.876e-05,43349.0,43348.0,0.43671115]
[1642263228617,6.876e-05,43349.0,43348.0,1.13671115]
[1642263229018,6.876e-05,43349.0,43348.0,0.8]
[1642263229518,6.876e-05,43349.0,43348.0,1.2]
[1642263229718,6.876e-05,43349.0,43348.0,1.9752]
[1642263229975,6.876e-05,43349.0,43348.0,2.25957983]
[1642263230177,6.876e-05,43349.0,43348.0,3.24642572]
[1642263230575,6.876e-05,43349.0,43348.0,2.35067281]
[1642263230878,6.876e-05,43349.0,43348.0,2.39697281]
[1642263231081,6.876e-05,43349.0,43348.0,2.45462981]
[1642263231775,6.876e-05,43349.0,43348.0,3.67462981]
[1642263233479,6.876e-05,43349.0,43348.0,2.17024998]
[1642263234216,6.876e-05,43349.0,43348.0,2.11259298]